fUST/lending_fUST_20240219
["ID","MTS","AMOUNT","RATE_DAILY","PERIOD"]
[314417656,1708324243948,-4242.98991965,0.00025297,2]
[314417658,1708324243957,-2830.08478305,0.00025372,2]
[314417660,1708324243966,-875.86294293,0.0002541,3]
[314417663,1708324243975,-1164.370995,0.00025447,2]
[314417665,1708324243985,-2726.85120007,0.00025465,2]
[314417667,1708324243994,-1712.03662377,0.00025466,2]
[314417669,1708324244003,-200.0,0.00025479,2]
[314417671,1708324244012,-153.0,0.00025479,2]
[314417673,1708324244021,-426.3015673,0.00025479,2]
[314417675,1708324244030,-479.2575874,0.00025479,2]
[314417677,1708324244039,-300.0,0.00025563,2]
[314417679,1708324244049,-151.06042417,0.00025793,7]
[314417681,1708324244058,-166.666666,0.00025812,2]
[314417683,1708324244067,-300.0,0.00025937,2]
[314417684,1708324244077,-564.78576104,0.00026,5]
[314417687,1708324244088,-380.88229713,0.00026,2]
[314417689,1708324244097,-2830.08478305,0.00026027,2]
[314417691,1708324244108,-300.0,0.000261,12]
[314417693,1708324244117,-300.0,0.00026311,2]
[314417695,1708324244126,-151.06042417,0.0002632,4]
[314417697,1708324244135,-166.666666,0.00026388,2]
[314417699,1708324244145,-9017.97769562,0.00026546,2]
[314417701,1708324244154,-2830.08478305,0.00026683,2]
[314417703,1708324244163,-300.0,0.00026684,2]
[314417705,1708324244172,-949.68750506,0.00026738,2]
[314417707,1708324244181,-381.51799419,0.00026738,2]
[314417709,1708324244190,-382.31456852,0.00026738,2]
[314417711,1708324244199,-578.2536748,0.00026756,2]
[314417713,1708324244207,-1000.0,0.00026756,3]
[314417715,1708324244216,-879.08696044,0.0002679,2]
[314417716,1708324244226,-5000.0,0.00026795,2]
[314417719,1708324244236,-5000.0,0.00026795,2]
[314417721,1708324244245,-5000.0,0.00026795,2]
[314417722,1708324244254,-5000.0,0.00026795,2]
[314417725,1708324244264,-5000.0,0.00026795,2]
[314417727,1708324244273,-5000.0,0.00026795,2]
[314417728,1708324244282,-5000.0,0.00026795,2]
[314417730,1708324244291,-5000.0,0.00026795,2]
[314417732,1708324244300,-5000.0,0.00026795,2]
[314417734,1708324244311,-5000.0,0.00026795,2]
[314417735,1708324244320,-5000.0,0.00026795,2]
[314417737,1708324244331,-5000.0,0.00026795,2]
[314417738,1708324244341,-1000.0,0.00026795,3]
[314417739,1708324244351,-5000.0,0.00026795,2]
[314417740,1708324244361,-4394.7421587,0.00026828,2]
[314417741,1708324244370,-959.33439238,0.00026828,2]
[314417742,1708324244379,-164.26788713,0.00026828,2]
[314417743,1708324244388,-372.25781281,0.00026828,2]
[314417744,1708324244398,-158.39417081,0.00026828,2]
[314417745,1708324244408,-632.78411979,0.00026828,2]
[314417746,1708324244418,-402.27210571,0.00026828,2]
[314417747,1708324244427,-1000.0,0.00026828,3]
[314417748,1708324244436,-237.42187626,0.00026828,2]
[314417749,1708324244446,-151.06042417,0.00026857,2]
[314417750,1708324244456,-151.0,0.00026874,2]
[314417751,1708324244466,-5000.0,0.0002692,2]
[314417752,1708324244476,-5000.0,0.0002692,2]
[314417753,1708324244486,-5000.0,0.0002692,2]
[314417754,1708324244495,-5000.0,0.0002692,2]
[314417755,1708324244504,-151.0,0.0002692,2]
[314417756,1708324244517,-166.666666,0.00026965,2]
[314417757,1708324244527,-2545.58,0.00026992,4]
[314417758,1708324244536,-1041.61096126,0.00027,2]
[314417759,1708324244545,-16234.4137441,0.00027,2]
[314417760,1708324244554,-1012.64975529,0.00027,2]
[314417761,1708324244564,-300.0,0.00027058,2]
[314417762,1708324244574,-151.0,0.00027072,2]
[314417763,1708324244583,-500.0,0.00027076,2]
[314417764,1708324244592,-620.49744146,0.00027076,2]
[314417765,1708324244602,-500.0,0.00027076,2]
[314417766,1708324244611,-500.0,0.00027076,2]
[314417767,1708324244621,-500.0,0.00027076,2]
[314417768,1708324244630,-500.0,0.00027076,2]
[314417769,1708324244639,-500.0,0.00027076,2]
[314417770,1708324244648,-500.0,0.00027076,2]
[314417771,1708324244658,-500.0,0.00027076,2]
[314417772,1708324244666,-500.0,0.00027076,2]
[314417773,1708324244676,-500.0,0.00027076,2]
[314417774,1708324244685,-500.0,0.00027076,2]
[314417775,1708324244694,-400.0,0.00027076,2]
[314417776,1708324244703,-293.71098259,0.00027076,2]
[314417777,1708324244712,-500.0,0.00027076,2]
[314417778,1708324244721,-416.45681123,0.00027076,2]
[314417779,1708324244732,-500.0,0.00027076,2]
[314417780,1708324244741,-500.0,0.00027076,2]
[314417781,1708324244750,-500.0,0.00027076,2]
[314417782,1708324244759,-500.0,0.00027076,2]
[314417783,1708324244768,-500.0,0.00027076,2]
[314417784,1708324244777,-500.0,0.00027076,2]
[314417785,1708324244786,-500.0,0.00027076,2]
[314417786,1708324244795,-500.0,0.00027076,2]
[314417787,1708324244804,-500.0,0.00027076,2]
[314417788,1708324244813,-500.0,0.00027076,2]
[314417789,1708324244822,-500.0,0.00027076,2]
[314417790,1708324244831,-500.0,0.00027076,2]
[314417791,1708324244841,-500.0,0.00027076,2]
[314417792,1708324244851,-500.0,0.00027076,2]
[314417793,1708324244860,-500.0,0.00027076,2]
[314417794,1708324244869,-500.0,0.00027076,2]
[314417795,1708324244879,-500.0,0.00027076,2]
[314417796,1708324244888,-500.0,0.00027076,2]
[314417797,1708324244898,-500.0,0.00027076,2]
[314417798,1708324244907,-500.0,0.00027076,2]
[314417799,1708324244916,-500.0,0.00027076,2]
[314417800,1708324244925,-500.0,0.00027076,2]
[314417801,1708324244934,-500.0,0.00027076,2]
[314417802,1708324244943,-500.0,0.00027076,2]
[314417803,1708324244953,-500.0,0.00027076,2]
[314417804,1708324244962,-500.0,0.00027076,2]
[314417805,1708324244971,-500.0,0.00027076,2]
[314417806,1708324244981,-500.0,0.00027076,2]
[314417807,1708324244989,-222.13797761,0.00027076,2]
[314417808,1708324244998,-500.0,0.00027076,2]
[314417809,1708324245007,-500.0,0.00027076,2]
[314417810,1708324245016,-500.0,0.00027076,2]
[314417811,1708324245117,-500.0,0.00027076,2]
[314417812,1708324245126,-200.0,0.00027076,2]
[314417813,1708324245135,-272839.933,0.00027077,7]
[314417814,1708324245145,-369.9590275,0.00027123,2]
[314417815,1708324245154,-5000.0,0.00027162,2]
[314417816,1708324245163,-20972.03292228,0.00027162,2]
[314417817,1708324245172,-5000.0,0.00027162,2]
[314417818,1708324245181,-5000.0,0.00027162,2]
[314417819,1708324245191,-14477.72623435,0.00027292,2]
[314417820,1708324245200,-5000.0,0.00027292,2]
[314417821,1708324245210,-5000.0,0.00027292,2]
[314417822,1708324245219,-5000.0,0.00027292,2]
[314417823,1708324245230,-4474.15256017,0.00027292,2]
[314417824,1708324245239,-5000.0,0.00027292,2]
[314417825,1708324245248,-5000.0,0.00027292,2]
[314417826,1708324245257,-5013.20814792,0.00027292,2]
[314417827,1708324245266,-5000.0,0.00027292,2]
[314417828,1708324245276,-5000.0,0.00027292,2]
[314417829,1708324245285,-5000.0,0.00027292,2]
[314417830,1708324245294,-3884.61494437,0.00027292,2]
[314417831,1708324245303,-7206.18565526,0.00027292,2]
[314417832,1708324245313,-5000.0,0.00027292,2]
[314417833,1708324245322,-204.73115998,0.00027296,2]
[314417834,1708324245332,-12733.34379758,0.00027297,2]
[314417835,1708324245342,-2830.08478305,0.00027339,2]
[314417836,1708324245351,-31846.69393896,0.0002738,2]
[314417837,1708324245361,-155.24590927,0.00027395,2]
[314417838,1708324245371,-500.0,0.00027397,2]
[314417839,1708324245380,-500.0,0.00027397,2]
[314417840,1708324245390,-500.0,0.00027397,2]
[314417841,1708324245400,-180.71575866,0.00027397,2]
[314417842,1708324245409,-500.0,0.00027397,2]
[314417843,1708324245419,-500.0,0.00027397,2]
[314417844,1708324245428,-500.0,0.00027397,2]
[314417845,1708324245438,-500.0,0.00027397,2]
[314417846,1708324245447,-500.0,0.00027397,2]
[314417847,1708324245457,-500.0,0.00027397,2]
[314417848,1708324245466,-500.0,0.00027397,2]
[314417849,1708324245476,-303.02941277,0.00027397,2]
[314417850,1708324245486,-353.53466839,0.00027397,2]
[314417851,1708324245495,-500.0,0.00027397,2]
[314417852,1708324245505,-500.0,0.00027397,2]
[314417853,1708324245515,-500.0,0.00027397,2]
[314417854,1708324245527,-500.0,0.00027397,2]
[314417855,1708324245536,-500.0,0.00027397,2]
[314417856,1708324245545,-500.0,0.00027397,2]
[314417857,1708324245555,-558.34197283,0.00027397,2]
[314417858,1708324245566,-377.41017302,0.00027397,2]
[314417859,1708324245575,-500.0,0.00027397,2]
[314417860,1708324245585,-500.0,0.00027397,2]
[314417861,1708324245595,-500.0,0.00027397,2]
[314417862,1708324245604,-500.0,0.00027397,2]
[314417863,1708324245613,-500.0,0.00027397,2]
[314417864,1708324245622,-500.0,0.00027397,2]
[314417865,1708324245632,-500.0,0.00027397,2]
[314417866,1708324245641,-500.0,0.00027397,2]
[314417868,1708324245650,-500.0,0.00027397,2]
[314417869,1708324245659,-500.0,0.00027397,2]
[314417870,1708324245668,-500.0,0.00027397,2]
[314417871,1708324245677,-500.0,0.00027397,2]
[314417872,1708324245686,-500.0,0.00027397,2]
[314417873,1708324245695,-500.0,0.00027397,2]
[314417874,1708324245704,-500.0,0.00027397,2]
[314417876,1708324245713,-500.0,0.00027397,2]
[314417878,1708324245723,-500.0,0.00027397,2]
[314417880,1708324245732,-500.0,0.00027397,2]
[314417881,1708324245741,-500.0,0.00027397,2]
[314417882,1708324245750,-500.0,0.00027397,2]
[314417883,1708324245759,-500.0,0.00027397,2]
[314417885,1708324245769,-500.0,0.00027397,2]
[314417886,1708324245778,-500.0,0.00027397,2]
[314417887,1708324245787,-500.0,0.00027397,2]
[314417888,1708324245796,-500.0,0.00027397,2]
[314417889,1708324245805,-500.0,0.00027397,2]
[314417890,1708324245814,-500.0,0.00027397,2]
[314417892,1708324245823,-252.20884706,0.00027397,2]
[314417894,1708324245832,-500.0,0.00027397,2]
[314417895,1708324245841,-205.51223501,0.00027397,2]
[314417896,1708324245850,-500.0,0.00027397,2]
[314417897,1708324245859,-766.57,0.00027397,2]
[314417898,1708324245868,-500.0,0.00027397,2]
[314417899,1708324245877,-641.4460458,0.00027397,2]
[314417900,1708324245886,-418.89955506,0.00027397,2]
[314417901,1708324245895,-568.47,0.00027397,2]
[314417902,1708324245905,-500.0,0.00027397,2]
[314417903,1708324245914,-511.09769947,0.00027397,2]
[314417904,1708324245923,-683.9,0.00027397,2]
[314417906,1708324245933,-500.0,0.00027397,2]
[314417908,1708324245942,-500.0,0.00027397,2]
[314417909,1708324245952,-500.0,0.00027397,2]
[314417910,1708324245961,-561.30847216,0.00027397,2]
[314417911,1708324245969,-500.0,0.00027397,2]
[314417912,1708324245979,-500.0,0.00027397,2]
[314417913,1708324245987,-500.0,0.00027397,2]
[314417914,1708324245996,-500.0,0.00027397,2]
[314417915,1708324246005,-500.0,0.00027397,2]
[314417916,1708324246014,-622.45,0.00027397,2]
[314417917,1708324246024,-622.45,0.00027397,2]
[314417918,1708324246032,-622.45,0.00027397,2]
[314417919,1708324246041,-622.45,0.00027397,2]
[314417920,1708324246050,-622.45,0.00027397,2]
[314417921,1708324246059,-622.45,0.00027397,2]
[314417922,1708324246068,-622.45,0.00027397,2]
[314417923,1708324246077,-622.45,0.00027397,2]
[314417924,1708324246086,-622.45,0.00027397,2]
[314417925,1708324246095,-622.45,0.00027397,2]
[314417926,1708324246104,-622.45,0.00027397,2]
[314417927,1708324246113,-782.99,0.00027397,2]
[314417928,1708324246122,-622.45,0.00027397,2]
[314417929,1708324246132,-622.45,0.00027397,2]
[314417930,1708324246141,-622.45,0.00027397,2]
[314417931,1708324246150,-622.45,0.00027397,2]
[314417932,1708324246159,-622.45,0.00027397,2]
[314417933,1708324246168,-622.45,0.00027397,2]
[314417934,1708324246177,-598.33769882,0.00027397,2]
[314417935,1708324246186,-622.45,0.00027397,2]
[314417936,1708324246195,-622.45,0.00027397,2]
[314417937,1708324246205,-622.45,0.00027397,2]
[314417939,1708324246214,-622.45,0.00027397,2]
[314417941,1708324246223,-622.45,0.00027397,2]
[314417942,1708324246233,-622.45,0.00027397,2]
[314417944,1708324246243,-622.61992505,0.00027397,2]
[314417945,1708324246252,-500.0,0.00027397,2]
[314417946,1708324246262,-500.0,0.00027397,30]
[314417947,1708324246271,-500.0,0.00027397,2]
[314417948,1708324246280,-500.0,0.00027397,2]
[314417949,1708324246291,-500.0,0.00027397,2]
[314417950,1708324246301,-500.0,0.00027397,2]
[314417951,1708324246311,-500.0,0.00027397,2]
[314417952,1708324246320,-500.0,0.00027397,2]
[314417953,1708324246329,-200.0,0.00027397,2]
[314417954,1708324246339,-528.03060378,0.00027397,2]
[314417955,1708324246348,-209.66059982,0.00027397,2]
[314417956,1708324246357,-500.0,0.00027397,2]
[314417957,1708324246366,-500.0,0.00027397,2]
[314417958,1708324246376,-500.0,0.00027397,2]
[314417960,1708324246385,-500.0,0.00027397,2]
[314417962,1708324246394,-1236.3,0.00027397,2]
[314417964,1708324246403,-500.0,0.00027397,2]
[314417965,1708324246413,-500.0,0.00027397,2]
[314417966,1708324246422,-500.0,0.00027397,2]
[314417967,1708324246432,-517.55,0.00027397,2]
[314417968,1708324246441,-500.0,0.00027397,2]
[314417969,1708324246450,-610.46,0.00027397,2]
[314417970,1708324246460,-500.0,0.00027397,2]
[314417972,1708324246469,-500.0,0.00027397,2]
[314417973,1708324246480,-806.68,0.00027397,2]
[314417974,1708324246489,-500.0,0.00027397,2]
[314417975,1708324246498,-500.0,0.00027397,2]
[314417976,1708324246508,-500.0,0.00027397,2]
[314417977,1708324246525,-500.0,0.00027397,2]
[314417978,1708324246535,-500.0,0.00027397,2]
[314417979,1708324246544,-155.5648918,0.00027397,2]
[314417980,1708324246555,-500.0,0.00027397,2]
[314417981,1708324246565,-500.0,0.00027397,2]
[314417982,1708324246575,-317.30845994,0.00027397,2]
[314417983,1708324246585,-581.09617066,0.00027397,2]
[314417984,1708324246595,-500.0,0.00027397,2]
[314417985,1708324246607,-500.0,0.00027397,2]
[314417986,1708324246616,-500.0,0.00027397,2]
[314417987,1708324246626,-500.0,0.00027397,2]
[314417988,1708324246636,-500.0,0.00027397,2]
[314417989,1708324246646,-500.0,0.00027397,2]
[314417990,1708324246655,-500.0,0.00027397,2]
[314417991,1708324246665,-500.0,0.00027397,2]
[314417992,1708324246674,-500.0,0.00027397,2]
[314417993,1708324246685,-500.0,0.00027397,2]
[314417994,1708324246694,-500.0,0.00027397,2]
[314417995,1708324246703,-500.0,0.00027397,2]
[314417996,1708324246713,-649.41414066,0.00027397,2]
[314417997,1708324246722,-505.50990256,0.00027397,2]
[314417998,1708324246733,-500.0,0.00027397,2]
[314417999,1708324246742,-638.39697754,0.00027397,2]
[314418000,1708324246751,-500.0,0.00027397,2]
[314418001,1708324246761,-220.30022493,0.00027397,2]
[314418002,1708324246771,-500.0,0.00027397,2]
[314418003,1708324246781,-500.0,0.00027397,2]
[314418004,1708324246790,-500.0,0.00027397,2]
[314418005,1708324246799,-500.0,0.00027397,2]
[314418006,1708324246809,-500.0,0.00027397,2]
[314418007,1708324246818,-500.0,0.00027397,2]
[314418008,1708324246827,-211.49781367,0.00027397,2]
[314418009,1708324246922,-500.0,0.00027397,2]
[314418010,1708324246933,-500.0,0.00027397,2]
[314418011,1708324246942,-500.0,0.00027397,2]
[314418012,1708324246951,-500.0,0.00027397,2]
[314418013,1708324246961,-500.0,0.00027397,2]
[314418014,1708324246972,-500.0,0.00027397,2]
[314418015,1708324246982,-500.0,0.00027397,2]
[314418016,1708324246991,-500.0,0.00027397,2]
[314418017,1708324247001,-500.2659361,0.00027397,2]
[314418018,1708324247010,-500.0,0.00027397,2]
[314418019,1708324247020,-500.0,0.00027397,2]
[314418020,1708324247029,-1602.96,0.00027397,2]
[314418021,1708324247038,-727.09,0.00027397,2]
[314418022,1708324247048,-500.0,0.00027397,2]
[314418023,1708324247058,-500.0,0.00027397,2]
[314418024,1708324247067,-412.92490373,0.00027397,2]
[314418025,1708324247077,-500.0,0.00027397,2]
[314418026,1708324247086,-200.8869038,0.00027397,2]
[314418027,1708324247095,-506.0307741,0.00027397,2]
[314418028,1708324247104,-500.0,0.00027397,2]
[314418029,1708324247113,-500.0,0.00027397,2]
[314418030,1708324247122,-500.0,0.00027397,2]
[314418031,1708324247132,-500.0,0.00027397,2]
[314418032,1708324247141,-500.0,0.00027397,2]
[314418033,1708324247150,-500.0,0.00027397,2]
[314418034,1708324247160,-500.0,0.00027397,2]
[314418035,1708324247170,-500.0,0.00027397,2]
[314418036,1708324247179,-500.0,0.00027397,2]
[314418037,1708324247188,-500.0,0.00027397,2]
[314418038,1708324247198,-500.0,0.00027397,2]
[314418039,1708324247207,-577.33003737,0.00027397,2]
[314418040,1708324247217,-658.69,0.00027397,2]
[314418041,1708324247227,-500.0,0.00027397,2]
[314418042,1708324247237,-500.0,0.00027397,2]
[314418043,1708324247247,-1000.0,0.00027397,2]
[314418044,1708324247256,-500.0,0.00027397,2]
[314418045,1708324247266,-500.0,0.00027397,2]
[314418046,1708324247276,-500.0,0.00027397,2]
[314418047,1708324247286,-500.0,0.00027397,2]
[314418048,1708324247295,-500.0,0.00027397,2]
[314418049,1708324247305,-500.0,0.00027397,2]
[314418050,1708324247314,-367.6358618,0.00027397,2]
[314418051,1708324247323,-151.0,0.00027397,2]
[314418052,1708324247333,-205.18939354,0.00027397,2]
[314418053,1708324247343,-500.0,0.00027397,2]
[314418054,1708324247353,-500.0,0.00027397,2]
[314418055,1708324247363,-500.0,0.00027397,2]
[314418056,1708324247373,-500.0,0.00027397,2]
[314418057,1708324247383,-500.0,0.00027397,2]
[314418058,1708324247392,-500.0,0.00027397,2]
[314418059,1708324247402,-581.54088907,0.00027397,2]
[314418060,1708324247411,-500.0,0.00027397,2]
[314418061,1708324247421,-500.0,0.00027397,2]
[314418062,1708324247430,-500.0,0.00027397,2]
[314418063,1708324247439,-155.0,0.00027397,2]
[314418064,1708324247449,-500.0,0.00027397,2]
[314418065,1708324247458,-502.29372964,0.00027397,2]
[314418066,1708324247468,-199.42460933,0.00027397,2]
[314418067,1708324247477,-500.0,0.00027397,2]
[314418068,1708324247486,-500.0,0.00027397,2]
[314418069,1708324247496,-500.0,0.00027397,2]
[314418070,1708324247505,-340.26376477,0.00027397,2]
[314418071,1708324247517,-500.0,0.00027397,2]
[314418072,1708324247526,-500.0,0.00027397,2]
[314418073,1708324247535,-500.0,0.00027397,2]
[314418074,1708324247544,-174.88549826,0.00027397,2]
[314418075,1708324247555,-500.0,0.00027397,2]
[314418076,1708324247563,-500.0,0.00027397,2]
[314418077,1708324247572,-500.0,0.00027397,2]
[314418078,1708324247582,-500.0,0.00027397,2]
[314418079,1708324247590,-500.0,0.00027397,2]
[314418080,1708324247600,-500.0,0.00027397,2]
[314418081,1708324247609,-500.0,0.00027397,2]
[314418082,1708324247618,-500.0,0.00027397,2]
[314418083,1708324247627,-500.0,0.00027397,2]
[314418084,1708324247638,-3055.95,0.00027397,2]
[314418085,1708324247647,-3055.95,0.00027397,2]
[314418086,1708324247656,-3055.95,0.00027397,2]
[314418087,1708324247665,-3055.95,0.00027397,2]
[314418088,1708324247674,-3055.95,0.00027397,2]
[314418089,1708324247683,-3055.95,0.00027397,2]
[314418090,1708324247692,-3055.95,0.00027397,2]
[314418091,1708324247701,-500.0,0.00027397,2]
[314418092,1708324247710,-3055.95,0.00027397,2]
[314418093,1708324247718,-3055.95,0.00027397,2]
[314418094,1708324247727,-3055.95,0.00027397,2]
[314418095,1708324247737,-3055.95,0.00027397,2]
[314418096,1708324247746,-500.0,0.00027397,2]
[314418097,1708324247755,-3055.95,0.00027397,2]
[314418098,1708324247764,-3055.95,0.00027397,2]
[314418099,1708324247773,-3055.95,0.00027397,2]
[314418100,1708324247782,-3055.95,0.00027397,2]
[314418101,1708324247792,-3055.95,0.00027397,2]
[314418102,1708324247801,-3055.95,0.00027397,2]
[314418103,1708324247810,-3055.95,0.00027397,2]
[314418104,1708324247819,-3055.95,0.00027397,2]
[314418105,1708324247828,-3055.95,0.00027397,2]
[314418106,1708324247837,-3055.95,0.00027397,2]
[314418107,1708324247847,-3055.95,0.00027397,2]
[314418108,1708324247856,-3055.95,0.00027397,2]
[314418109,1708324247865,-3056.02334664,0.00027397,2]
[314418110,1708324247874,-500.0,0.00027397,2]
[314418111,1708324247883,-500.0,0.00027397,2]
[314418112,1708324247892,-500.0,0.00027397,2]
[314418113,1708324247901,-501.91358117,0.00027397,2]
[314418114,1708324247910,-500.0,0.00027397,2]
[314418115,1708324247919,-1405.32,0.00027397,2]
[314418116,1708324247928,-500.0,0.00027397,2]
[314418117,1708324247938,-500.0,0.00027397,2]
[314418118,1708324247947,-500.0,0.00027397,2]
[314418119,1708324247956,-500.0,0.00027397,2]
[314418120,1708324247965,-500.0,0.00027397,2]
[314418121,1708324247974,-989.21,0.00027397,2]
[314418122,1708324247984,-601.06746091,0.00027397,2]
[314418123,1708324247992,-500.0,0.00027397,2]
[314418124,1708324248001,-4972.5,0.00027397,2]
[314418125,1708324248011,-500.0,0.00027397,2]
[314418126,1708324248020,-500.0,0.00027397,2]
[314418127,1708324248029,-500.0,0.00027397,2]
[314418128,1708324248038,-500.0,0.00027397,2]
[314418129,1708324248047,-756.18,0.00027397,2]
[314418130,1708324248056,-3030.08,0.00027397,2]
[314418131,1708324248065,-500.0,0.00027397,2]
[314418132,1708324248074,-500.0,0.00027397,2]
[314418133,1708324248082,-500.0,0.00027397,2]
[314418134,1708324248091,-359.36279436,0.00027397,2]
[314418135,1708324248101,-500.0,0.00027397,2]
[314418136,1708324248110,-500.0,0.00027397,2]
[314418137,1708324248119,-4837.96,0.00027397,2]
[314418138,1708324248127,-510.98034622,0.00027397,2]
[314418139,1708324248137,-500.0,0.00027397,2]
[314418140,1708324248146,-510.7782259,0.00027397,2]
[314418141,1708324248155,-500.0,0.00027397,2]
[314418142,1708324248164,-500.0,0.00027397,2]
[314418143,1708324248173,-502.29555102,0.00027397,2]
[314418144,1708324248182,-1089.1,0.00027397,2]
[314418145,1708324248191,-618.60061479,0.00027397,2]
[314418146,1708324248200,-500.0,0.00027397,2]
[314418147,1708324248210,-500.0,0.00027397,2]
[314418148,1708324248219,-276.33213382,0.00027397,2]
[314418149,1708324248228,-500.0,0.00027397,2]
[314418150,1708324248237,-1297.97,0.00027397,2]
[314418151,1708324248247,-666.73,0.00027397,2]
[314418152,1708324248256,-500.0,0.00027397,2]
[314418153,1708324248265,-613.15073575,0.00027397,2]
[314418154,1708324248274,-500.0,0.00027397,2]
[314418155,1708324248283,-509.4744152,0.00027397,2]
[314418156,1708324248293,-500.0,0.00027397,2]
[314418157,1708324248302,-500.0,0.00027397,2]
[314418158,1708324248311,-500.0,0.00027397,2]
[314418159,1708324248320,-500.0,0.00027397,2]
[314418160,1708324248329,-500.0,0.00027397,2]
[314418161,1708324248339,-500.0,0.00027397,2]
[314418162,1708324248348,-500.0,0.00027397,2]
[314418163,1708324248358,-500.0,0.00027397,2]
[314418164,1708324248367,-500.0,0.00027397,2]
[314418165,1708324248377,-500.0,0.00027397,2]
[314418166,1708324248386,-500.0,0.00027397,2]
[314418167,1708324248395,-481.16605554,0.00027397,2]
[314418168,1708324248404,-500.0,0.00027397,2]
[314418169,1708324248414,-1000.0,0.00027397,5]
[314418170,1708324248423,-500.0,0.00027397,2]
[314418171,1708324248432,-500.0,0.00027397,2]
[314418172,1708324248441,-568.54419774,0.00027397,2]
[314418173,1708324248450,-235.56987339,0.00027397,2]
[314418174,1708324248459,-501.64888846,0.00027397,2]
[314418175,1708324248468,-500.0,0.00027397,2]
[314418176,1708324248478,-500.0,0.00027397,2]
[314418177,1708324248567,-500.26007957,0.00027397,2]
[314418178,1708324248576,-549.5,0.00027397,2]
[314418179,1708324248586,-516.54143644,0.00027397,2]
[314418180,1708324248597,-500.0,0.00027397,2]
[314418181,1708324248606,-500.0,0.00027397,2]
[314418182,1708324248615,-500.0,0.00027397,2]
[314418183,1708324248625,-515.65980085,0.00027397,2]
[314418184,1708324248634,-500.0,0.00027397,2]
[314418185,1708324248643,-500.0,0.00027397,2]
[314418186,1708324248653,-500.0,0.00027397,2]
[314418187,1708324248662,-500.0,0.00027397,2]
[314418188,1708324248671,-512.81045093,0.00027397,2]
[314418189,1708324248681,-500.0,0.00027397,2]
[314418190,1708324248690,-500.31519978,0.00027397,2]
[314418191,1708324248698,-500.0,0.00027397,2]
[314418192,1708324248707,-379.73370457,0.00027397,2]
[314418193,1708324248716,-565.58013424,0.00027397,2]
[314418194,1708324248725,-500.0,0.00027397,2]
[314418195,1708324248735,-2814.88,0.00027397,2]
[314418196,1708324248743,-393.73352304,0.00027397,2]
[314418197,1708324248752,-169.78562533,0.00027397,2]
[314418198,1708324248762,-500.0,0.00027397,2]
[314418199,1708324248771,-500.0,0.00027397,2]
[314418200,1708324248780,-373.52281906,0.00027397,2]
[314418201,1708324248789,-500.0,0.00027397,2]
[314418202,1708324248798,-500.0,0.00027397,2]
[314418203,1708324248807,-500.0,0.00027397,2]
[314418204,1708324248816,-500.0,0.00027397,2]
[314418205,1708324248826,-500.0,0.00027397,2]
[314418206,1708324248835,-500.0,0.00027397,2]
[314418207,1708324248844,-500.0,0.00027397,2]
[314418208,1708324248854,-500.0,0.00027397,2]
[314418209,1708324248863,-500.0,0.00027397,2]
[314418210,1708324248872,-500.0,0.00027397,2]
[314418211,1708324248881,-500.0,0.00027397,2]